[Event "*** SCC Grand Prix: Titled Tuesday Blitz"]
[Site "Chess.com"]
[Date "2020.07.14"]
[Round "2"]
[White "bascheyaro"]
[Black "DariaVoit"]
[Result "1-0"]
[WhiteElo "2699"]
[BlackElo "2465"]
[TimeControl "180+1"]
[EndTime "10:18:11 PDT"]
[Termination "bascheyaro won on time"]

1. d4 {[%clk 0:03:00.9]} 1... Nf6 {[%clk 0:02:58.1]} 2. c4 {[%clk 0:03:00.9]}
2... e6 {[%clk 0:02:56.3]} 3. Nf3 {[%clk 0:03:01]} 3... b6 {[%clk 0:02:56.5]} 4.
g3 {[%clk 0:03:00.3]} 4... Bb7 {[%clk 0:02:56.9]} 5. Bg2 {[%clk 0:03:00.7]} 5...
Be7 {[%clk 0:02:57.4]} 6. O-O {[%clk 0:03:00.8]} 6... O-O {[%clk 0:02:58]} 7. b3
{[%clk 0:02:57.9]} 7... d5 {[%clk 0:02:38.5]} 8. Ne5 {[%clk 0:02:56.9]} 8...
Nfd7 {[%clk 0:02:35.4]} 9. Nc3 {[%clk 0:02:55.6]} 9... Nxe5 {[%clk 0:02:35.2]}
10. dxe5 {[%clk 0:02:55.7]} 10... c6 {[%clk 0:02:34.9]} 11. f4 {[%clk
0:02:49.7]} 11... Na6 {[%clk 0:02:26.1]} 12. cxd5 {[%clk 0:02:40]} 12... cxd5
{[%clk 0:02:23.1]} 13. Be3 {[%clk 0:02:37.6]} 13... Bc5 {[%clk 0:02:13.4]} 14.
Bd4 {[%clk 0:02:36.9]} 14... Bxd4+ {[%clk 0:02:07.4]} 15. Qxd4 {[%clk
0:02:36.3]} 15... Qd7 {[%clk 0:02:03.8]} 16. e4 {[%clk 0:02:34]} 16... Rfd8
{[%clk 0:01:57.1]} 17. exd5 {[%clk 0:02:33.7]} 17... exd5 {[%clk 0:01:55.9]} 18.
f5 {[%clk 0:02:33.2]} 18... Rac8 {[%clk 0:01:49.8]} 19. f6 {[%clk 0:02:31.8]}
19... g6 {[%clk 0:01:45.1]} 20. Rae1 {[%clk 0:02:29.4]} 20... Nc5 {[%clk
0:01:44.7]} 21. Qd2 {[%clk 0:02:17.8]} 21... Ne6 {[%clk 0:01:34.4]} 22. Bh3
{[%clk 0:02:16.8]} 22... Kh8 {[%clk 0:01:25.2]} 23. Qh6 {[%clk 0:01:57.7]} 23...
Rg8 {[%clk 0:01:24.6]} 24. Ne2 {[%clk 0:01:47.8]} 24... Ba6 {[%clk 0:01:06.1]}
25. Bxe6 {[%clk 0:01:44.7]} 25... Qxe6 {[%clk 0:01:05.3]} 26. Nd4 {[%clk
0:01:38.9]} 26... Qg4 {[%clk 0:00:52.9]} 27. Rf4 {[%clk 0:01:38.7]} 27... Qh5
{[%clk 0:00:52.6]} 28. Qxh5 {[%clk 0:01:38.5]} 28... gxh5 {[%clk 0:00:53.5]} 29.
e6 {[%clk 0:01:39]} 29... Rge8 {[%clk 0:00:44.6]} 30. Kf2 {[%clk 0:01:33.9]}
30... Bd3 {[%clk 0:00:34.1]} 31. Re5 {[%clk 0:01:26.4]} 31... Bg6 {[%clk
0:00:28.7]} 32. e7 {[%clk 0:01:18.7]} 32... h6 {[%clk 0:00:26.1]} 33. Rxd5
{[%clk 0:01:18]} 33... Kh7 {[%clk 0:00:26.7]} 34. Rd7 {[%clk 0:01:03.2]} 34...
Bb1 {[%clk 0:00:21.2]} 35. g4 {[%clk 0:00:59]} 35... h4 {[%clk 0:00:18]} 36. Rd5
{[%clk 0:00:54.4]} 36... Kg6 {[%clk 0:00:16.4]} 37. Nf3 {[%clk 0:00:50]} 37...
Rc2+ {[%clk 0:00:14.4]} 38. Ke1 {[%clk 0:00:48.8]} 38... Bxa2 {[%clk 0:00:11.3]}
39. Nxh4+ {[%clk 0:00:47.1]} 39... Kh7 {[%clk 0:00:11.5]} 40. Rd8 {[%clk
0:00:46]} 40... Rc8 {[%clk 0:00:10.9]} 41. Rxc8 {[%clk 0:00:42.4]} 41... Rxc8
{[%clk 0:00:10.2]} 42. Rc4 {[%clk 0:00:32.1]} 42... Rg8 {[%clk 0:00:05.7]} 43.
Rb4 {[%clk 0:00:28.7]} 43... Bb1 {[%clk 0:00:05.1]} 44. Kd2 {[%clk 0:00:27.9]}
44... h5 {[%clk 0:00:02.2]} 45. g5 {[%clk 0:00:26.6]} 45... Rc8 {[%clk
0:00:01.3]} 46. Rc4 {[%clk 0:00:25.7]} 1-0

[Event "*** SCC Grand Prix: Titled Tuesday Blitz"]
[Site "Chess.com"]
[Date "2020.07.14"]
[Round "2"]
[White "latixxa"]
[Black "MateSchmate"]
[Result "0-1"]
[WhiteElo "2104"]
[BlackElo "2393"]
[TimeControl "180+1"]
[EndTime "10:18:11 PDT"]
[Termination "MateSchmate won on time"]

1. d4 {[%clk 0:03:00.9]} 1... c5 {[%clk 0:02:59.3]} 2. e3 {[%clk 0:03:00.3]}
2... cxd4 {[%clk 0:03:00.2]} 3. exd4 {[%clk 0:03:00.9]} 3... d6 {[%clk
0:02:56.9]} 4. Nf3 {[%clk 0:03:01.3]} 4... Nf6 {[%clk 0:02:57.8]} 5. Bd3 {[%clk
0:02:55.9]} 5... g6 {[%clk 0:02:58.7]} 6. O-O {[%clk 0:02:54.9]} 6... Bg7 {[%clk
0:02:59.1]} 7. c3 {[%clk 0:02:53.7]} 7... O-O {[%clk 0:03:00]} 8. h3 {[%clk
0:02:52.4]} 8... Nc6 {[%clk 0:02:58.6]} 9. Bg5 {[%clk 0:02:50.7]} 9... Bd7
{[%clk 0:02:58.6]} 10. Nbd2 {[%clk 0:02:49.8]} 10... Rc8 {[%clk 0:02:48.2]} 11.
Re1 {[%clk 0:02:49.4]} 11... Re8 {[%clk 0:02:44.6]} 12. Ne4 {[%clk 0:02:41.4]}
12... Nxe4 {[%clk 0:02:40]} 13. Bxe4 {[%clk 0:02:42.3]} 13... Qc7 {[%clk
0:02:39.2]} 14. d5 {[%clk 0:02:23.9]} 14... Ne5 {[%clk 0:02:26.2]} 15. Nxe5
{[%clk 0:02:21.1]} 15... Bxe5 {[%clk 0:02:27.1]} 16. Qd2 {[%clk 0:02:20.4]}
16... b5 {[%clk 0:02:19.2]} 17. Bf4 {[%clk 0:02:17]} 17... Bg7 {[%clk
0:02:13.6]} 18. Rac1 {[%clk 0:02:15.4]} 18... Qa5 {[%clk 0:01:56.7]} 19. a3
{[%clk 0:02:11.4]} 19... Qb6 {[%clk 0:01:44.7]} 20. Bh6 {[%clk 0:01:45.4]} 20...
a5 {[%clk 0:01:35.3]} 21. Bxg7 {[%clk 0:01:13.5]} 21... Kxg7 {[%clk 0:01:36.2]}
22. h4 {[%clk 0:01:11.1]} 22... h5 {[%clk 0:01:34.9]} 23. g3 {[%clk 0:01:10]}
23... Rc7 {[%clk 0:01:11.5]} 24. Kg2 {[%clk 0:01:08]} 24... Rec8 {[%clk
0:01:10.4]} 25. Bd3 {[%clk 0:01:07.1]} 25... e5 {[%clk 0:01:04.5]} 26. Kh2
{[%clk 0:01:01.9]} 26... b4 {[%clk 0:00:57.7]} 27. axb4 {[%clk 0:00:54.5]} 27...
axb4 {[%clk 0:00:57.1]} 28. c4 {[%clk 0:00:52]} 28... Qd4 {[%clk 0:00:50.1]} 29.
b3 {[%clk 0:00:48.1]} 29... Ra8 {[%clk 0:00:47]} 30. Re4 {[%clk 0:00:47]} 30...
Qa7 {[%clk 0:00:45.2]} 31. Ree1 {[%clk 0:00:32.6]} 31... Qa2 {[%clk 0:00:44.5]}
32. Rc2 {[%clk 0:00:31.6]} 32... Qxb3 {[%clk 0:00:44]} 33. Kg2 {[%clk
0:00:31.8]} 33... Ra3 {[%clk 0:00:43.1]} 34. Re3 {[%clk 0:00:30.9]} 34... Qa4
{[%clk 0:00:39.1]} 35. Rf3 {[%clk 0:00:27.4]} 35... Bg4 {[%clk 0:00:35.3]} 36.
Re3 {[%clk 0:00:26.1]} 36... b3 {[%clk 0:00:34.6]} 37. Rb2 {[%clk 0:00:26]}
37... Ra2 {[%clk 0:00:34]} 38. f3 {[%clk 0:00:23.3]} 38... Bc8 {[%clk
0:00:30.9]} 39. Re2 {[%clk 0:00:23]} 39... Rxb2 {[%clk 0:00:27.9]} 40. Qxb2
{[%clk 0:00:23.9]} 40... Ba6 {[%clk 0:00:28.2]} 41. f4 {[%clk 0:00:22.7]} 41...
Bxc4 {[%clk 0:00:27.9]} 42. Bxc4 {[%clk 0:00:22]} 42... Qxc4 {[%clk 0:00:26.6]}
0-1

[Event "*** SCC Grand Prix: Titled Tuesday Blitz"]
[Site "Chess.com"]
[Date "2020.07.14"]
[Round "2"]
[White "denispopov"]
[Black "qingaunlee"]
[Result "0-1"]
[WhiteElo "1748"]
[BlackElo "2340"]
[TimeControl "180+1"]
[EndTime "10:18:11 PDT"]
[Termination "qingaunlee won by checkmate"]

1. e4 {[%clk 0:03:00.9]} 1... e6 {[%clk 0:02:57]} 2. b3 {[%clk 0:03:00.3]} 2...
c5 {[%clk 0:02:55.9]} 3. Bb2 {[%clk 0:02:59.2]} 3... Nc6 {[%clk 0:02:56.8]} 4.
Nc3 {[%clk 0:02:55.4]} 4... b6 {[%clk 0:02:56.9]} 5. d3 {[%clk 0:02:55.7]} 5...
Bb7 {[%clk 0:02:56.4]} 6. g3 {[%clk 0:02:55.7]} 6... d6 {[%clk 0:02:54.5]} 7.
Bg2 {[%clk 0:02:56.1]} 7... Nf6 {[%clk 0:02:54]} 8. Nge2 {[%clk 0:02:56.7]} 8...
g6 {[%clk 0:02:52.3]} 9. O-O {[%clk 0:02:56.4]} 9... Bg7 {[%clk 0:02:52]} 10.
Re1 {[%clk 0:02:45.9]} 10... O-O {[%clk 0:02:51.1]} 11. d4 {[%clk 0:02:35]}
11... cxd4 {[%clk 0:02:47.3]} 12. Nxd4 {[%clk 0:02:35.1]} 12... Rc8 {[%clk
0:02:36.1]} 13. Ndb5 {[%clk 0:02:15.6]} 13... Ne8 {[%clk 0:02:34.5]} 14. Na4
{[%clk 0:02:11.6]} 14... a6 {[%clk 0:02:25.7]} 15. Bxg7 {[%clk 0:02:07.6]} 15...
Kxg7 {[%clk 0:02:23.1]} 16. Nd4 {[%clk 0:02:05.2]} 16... b5 {[%clk 0:02:21]} 17.
Nb2 {[%clk 0:02:00.4]} 17... Qb6 {[%clk 0:02:07.6]} 18. c3 {[%clk 0:01:49.1]}
18... Nf6 {[%clk 0:01:53.1]} 19. Nxc6 {[%clk 0:01:37.3]} 19... Qxc6 {[%clk
0:01:48.3]} 20. c4 {[%clk 0:01:34.8]} 20... e5 {[%clk 0:01:33.5]} 21. cxb5
{[%clk 0:01:22.4]} 21... axb5 {[%clk 0:01:32.3]} 22. Rc1 {[%clk 0:01:22]} 22...
Qxc1 {[%clk 0:01:30.1]} 23. Qxc1 {[%clk 0:01:22.2]} 23... Rxc1 {[%clk
0:01:30.7]} 24. Rxc1 {[%clk 0:01:22.4]} 24... Bxe4 {[%clk 0:01:30.7]} 25. Bxe4
{[%clk 0:01:05.4]} 25... Nxe4 {[%clk 0:01:30.2]} 26. Rd1 {[%clk 0:01:05.4]}
26... Rd8 {[%clk 0:01:27.5]} 27. Rd3 {[%clk 0:01:03.5]} 27... d5 {[%clk
0:01:24.3]} 28. Nd1 {[%clk 0:01:01.5]} 28... d4 {[%clk 0:01:22]} 29. f3 {[%clk
0:00:53.6]} 29... Nc5 {[%clk 0:01:18.8]} 30. Rd2 {[%clk 0:00:53]} 30... f5
{[%clk 0:01:16.6]} 31. Nc3 {[%clk 0:00:42]} 31... b4 {[%clk 0:01:14.5]} 32. Ne2
{[%clk 0:00:37.4]} 32... d3 {[%clk 0:01:10.7]} 33. Nc1 {[%clk 0:00:20.1]} 33...
e4 {[%clk 0:01:10.5]} 34. fxe4 {[%clk 0:00:20.2]} 34... fxe4 {[%clk 0:01:09.6]}
35. Kf2 {[%clk 0:00:18.5]} 35... Rf8+ {[%clk 0:01:08.9]} 36. Ke3 {[%clk
0:00:17.7]} 36... Rf1 {[%clk 0:01:02.8]} 37. Nxd3 {[%clk 0:00:10.1]} 37... exd3
{[%clk 0:01:01.3]} 38. Kd4 {[%clk 0:00:10]} 38... Rc1 {[%clk 0:01:00.5]} 39. h4
{[%clk 0:00:06.8]} 39... Rc2 {[%clk 0:00:56.7]} 40. Rd1 {[%clk 0:00:06.9]} 40...
d2 {[%clk 0:00:49.4]} 41. Ke3 {[%clk 0:00:06.9]} 41... Rxa2 {[%clk 0:00:48.9]}
42. Rxd2 {[%clk 0:00:06.4]} 42... Rxd2 {[%clk 0:00:49]} 43. Kxd2 {[%clk
0:00:07.1]} 43... Nxb3+ {[%clk 0:00:49.7]} 44. Kd3 {[%clk 0:00:07.5]} 44... Nc5+
{[%clk 0:00:49.4]} 45. Kc4 {[%clk 0:00:07.5]} 45... b3 {[%clk 0:00:49.9]} 46.
Kc3 {[%clk 0:00:08]} 46... Kf6 {[%clk 0:00:49.4]} 47. Kb2 {[%clk 0:00:08.6]}
47... Kf5 {[%clk 0:00:49.6]} 48. Kc3 {[%clk 0:00:07.6]} 48... Kg4 {[%clk
0:00:49.5]} 49. Kb2 {[%clk 0:00:08.3]} 49... Kxg3 {[%clk 0:00:50.4]} 50. Kc3
{[%clk 0:00:09]} 50... Kxh4 {[%clk 0:00:50.8]} 51. Kb2 {[%clk 0:00:09.9]} 51...
g5 {[%clk 0:00:51.2]} 52. Kc3 {[%clk 0:00:10.5]} 52... g4 {[%clk 0:00:51.8]} 53.
Kb2 {[%clk 0:00:11.3]} 53... g3 {[%clk 0:00:52.4]} 54. Kc3 {[%clk 0:00:12.2]}
54... g2 {[%clk 0:00:53]} 55. Kb2 {[%clk 0:00:13.1]} 55... g1=Q {[%clk
0:00:53.1]} 56. Kc3 {[%clk 0:00:13.8]} 56... Qe3+ {[%clk 0:00:53.1]} 57. Kb2
{[%clk 0:00:14.5]} 57... Qd2+ {[%clk 0:00:53.1]} 58. Ka3 {[%clk 0:00:15.2]}
58... b2 {[%clk 0:00:50.8]} 59. Ka2 {[%clk 0:00:12.9]} 59... Kg3 {[%clk
0:00:49.5]} 60. Kb1 {[%clk 0:00:13.2]} 60... Qc1+ {[%clk 0:00:48.4]} 61. Ka2
{[%clk 0:00:13.9]} 61... Qa1# {[%clk 0:00:48.9]} 0-1

[Event "*** SCC Grand Prix: Titled Tuesday Blitz"]
[Site "Chess.com"]
[Date "2020.07.14"]
[Round "2"]
[White "Batica1984"]
[Black "binbin239"]
[Result "1-0"]
[WhiteElo "2879"]
[BlackElo "2537"]
[TimeControl "180+1"]
[EndTime "10:18:12 PDT"]
[Termination "Batica1984 won by checkmate"]

1. e4 {[%clk 0:03:00.9]} 1... c5 {[%clk 0:02:18.7]} 2. Nc3 {[%clk 0:02:57.4]}
2... Nc6 {[%clk 0:02:18.5]} 3. Bb5 {[%clk 0:02:55.5]} 3... Nd4 {[%clk
0:02:14.7]} 4. Nf3 {[%clk 0:02:54.1]} 4... Nxb5 {[%clk 0:02:10.9]} 5. Nxb5
{[%clk 0:02:53.4]} 5... g6 {[%clk 0:02:07.6]} 6. d4 {[%clk 0:02:48.7]} 6... Bg7
{[%clk 0:02:04.8]} 7. O-O {[%clk 0:02:17.4]} 7... cxd4 {[%clk 0:01:58.8]} 8.
Nbxd4 {[%clk 0:02:14.9]} 8... d6 {[%clk 0:01:52.6]} 9. c4 {[%clk 0:02:13.4]}
9... Nf6 {[%clk 0:01:52.6]} 10. Re1 {[%clk 0:02:12.7]} 10... O-O {[%clk
0:01:52.5]} 11. h3 {[%clk 0:02:12.7]} 11... Qc7 {[%clk 0:01:52]} 12. b3 {[%clk
0:02:11.7]} 12... a6 {[%clk 0:01:52.1]} 13. Bb2 {[%clk 0:02:11.3]} 13... Bd7
{[%clk 0:01:51.8]} 14. Rc1 {[%clk 0:02:10.8]} 14... Rac8 {[%clk 0:01:49.9]} 15.
Qe2 {[%clk 0:02:08]} 15... Qa5 {[%clk 0:01:45.6]} 16. Bc3 {[%clk 0:02:06.8]}
16... Qh5 {[%clk 0:01:44.1]} 17. a4 {[%clk 0:01:58.3]} 17... Qc5 {[%clk
0:01:38.7]} 18. Qd2 {[%clk 0:01:55.2]} 18... b5 {[%clk 0:01:32.8]} 19. cxb5
{[%clk 0:01:37.2]} 19... axb5 {[%clk 0:01:32.6]} 20. Nxb5 {[%clk 0:01:37.1]}
20... Qh5 {[%clk 0:01:17.5]} 21. e5 {[%clk 0:01:31.6]} 21... dxe5 {[%clk
0:01:14.4]} 22. Nxe5 {[%clk 0:01:26.3]} 22... Bxb5 {[%clk 0:01:08.4]} 23. axb5
{[%clk 0:01:25.8]} 23... Rfd8 {[%clk 0:01:08.4]} 24. Qb2 {[%clk 0:01:04.7]}
24... Nd5 {[%clk 0:01:05.4]} 25. Bd4 {[%clk 0:01:04.8]} 25... Rxc1 {[%clk
0:01:01.9]} 26. Rxc1 {[%clk 0:01:03.9]} 26... Nf4 {[%clk 0:01:01.6]} 27. Re1
{[%clk 0:00:59.7]} 27... Qg5 {[%clk 0:00:56.2]} 28. g3 {[%clk 0:00:55.9]} 28...
Nxh3+ {[%clk 0:00:54.4]} 29. Kf1 {[%clk 0:00:55.2]} 29... Qf5 {[%clk 0:00:49.1]}
30. b6 {[%clk 0:00:53.6]} 30... Ng5 {[%clk 0:00:41.6]} 31. f4 {[%clk 0:00:32.4]}
31... Ne4 {[%clk 0:00:37.3]} 32. Kg2 {[%clk 0:00:30.4]} 32... Nd6 {[%clk
0:00:30.8]} 33. Nc6 {[%clk 0:00:28.8]} 33... Qd5+ {[%clk 0:00:30]} 34. Kh2
{[%clk 0:00:26.9]} 34... Qxc6 {[%clk 0:00:26.1]} 35. Bxg7 {[%clk 0:00:26.7]}
35... Qxb6 {[%clk 0:00:24.8]} 36. Bd4 {[%clk 0:00:21.7]} 36... Qc6 {[%clk
0:00:23.7]} 37. Qe2 {[%clk 0:00:17.1]} 37... Nf5 {[%clk 0:00:23.1]} 38. Ba1
{[%clk 0:00:17.1]} 38... Qd5 {[%clk 0:00:20.8]} 39. g4 {[%clk 0:00:16.5]} 39...
Nh6 {[%clk 0:00:17.9]} 40. Qxe7 {[%clk 0:00:13.5]} 40... Nxg4+ {[%clk 0:00:18]}
41. Kg3 {[%clk 0:00:13.5]} 41... Qxb3+ {[%clk 0:00:17.5]} 42. Kxg4 {[%clk
0:00:13.4]} 42... Qb8 {[%clk 0:00:15.9]} 43. Qf6 {[%clk 0:00:11.8]} 43... Qc8+
{[%clk 0:00:16.6]} 44. Kh4 {[%clk 0:00:11.2]} 44... h5 {[%clk 0:00:14.9]} 45.
Qg7# {[%clk 0:00:10.5]} 1-0

[Event "*** SCC Grand Prix: Titled Tuesday Blitz"]
[Site "Chess.com"]
[Date "2020.07.14"]
[Round "2"]
[White "KNCP_719"]
[Black "AryanTari"]
[Result "0-1"]
[WhiteElo "2533"]
[BlackElo "2878"]
[TimeControl "180+1"]
[EndTime "10:18:12 PDT"]
[Termination "AryanTari won on time"]

1. e4 {[%clk 0:03:00.9]} 1... c6 {[%clk 0:02:55.6]} 2. c4 {[%clk 0:03:00.3]}
2... d5 {[%clk 0:02:55.4]} 3. cxd5 {[%clk 0:03:01.2]} 3... cxd5 {[%clk
0:02:56.3]} 4. exd5 {[%clk 0:03:02.1]} 4... Nf6 {[%clk 0:02:56.7]} 5. Qa4+
{[%clk 0:03:02.2]} 5... Nbd7 {[%clk 0:02:56.3]} 6. Nc3 {[%clk 0:03:02.6]} 6...
g6 {[%clk 0:02:55.2]} 7. Nf3 {[%clk 0:03:02.8]} 7... Bg7 {[%clk 0:02:54.5]} 8.
Bc4 {[%clk 0:03:03.3]} 8... O-O {[%clk 0:02:53.6]} 9. d3 {[%clk 0:03:03.7]} 9...
a6 {[%clk 0:02:47.8]} 10. Qa3 {[%clk 0:03:03.9]} 10... b6 {[%clk 0:02:46.4]} 11.
O-O {[%clk 0:03:03.4]} 11... Bb7 {[%clk 0:02:46.4]} 12. Re1 {[%clk 0:03:03.6]}
12... Re8 {[%clk 0:02:38.8]} 13. Qb4 {[%clk 0:02:53.8]} 13... b5 {[%clk
0:02:28.4]} 14. Bb3 {[%clk 0:02:53.5]} 14... Nb6 {[%clk 0:02:08.2]} 15. Qh4
{[%clk 0:02:53.2]} 15... Nbxd5 {[%clk 0:02:00.7]} 16. Ne4 {[%clk 0:02:46.7]}
16... a5 {[%clk 0:01:20.1]} 17. a4 {[%clk 0:02:22.1]} 17... Qb6 {[%clk
0:01:10.4]} 18. Bh6 {[%clk 0:02:04.5]} 18... Bh8 {[%clk 0:00:59.3]} 19. Bg5
{[%clk 0:01:02.9]} 19... bxa4 {[%clk 0:00:45.2]} 20. Bxa4 {[%clk 0:01:01.2]}
20... Bc6 {[%clk 0:00:45.8]} 21. Bxc6 {[%clk 0:00:29.9]} 21... Qxc6 {[%clk
0:00:46.2]} 22. Ne5 {[%clk 0:00:30.4]} 22... Qb5 {[%clk 0:00:38.5]} 23. Rab1
{[%clk 0:00:11.2]} 23... Nxe4 {[%clk 0:00:29]} 24. dxe4 {[%clk 0:00:04.4]} 24...
Bxe5 {[%clk 0:00:18.6]} 25. exd5 {[%clk 0:00:04.3]} 25... Qxd5 {[%clk
0:00:17.8]} 26. Bxe7 {[%clk 0:00:03.4]} 26... Ra6 {[%clk 0:00:12.2]} 27. Bg5
{[%clk 0:00:03.2]} 27... Rae6 {[%clk 0:00:11.7]} 28. Be3 {[%clk 0:00:03.7]}
28... Qb3 {[%clk 0:00:09.5]} 29. h3 {[%clk 0:00:02.6]} 29... h5 {[%clk
0:00:09.6]} 30. Qg5 {[%clk 0:00:01.6]} 30... Bf6 {[%clk 0:00:09.9]} 31. Qxa5
{[%clk 0:00:01.8]} 31... Re5 {[%clk 0:00:09.8]} 32. Qd2 {[%clk 0:00:02.3]} 32...
Qc4 {[%clk 0:00:09.2]} 33. Qd1 {[%clk 0:00:02.2]} 33... Qe4 {[%clk 0:00:08.5]}
34. Qf3 {[%clk 0:00:01.9]} 34... Qxf3 {[%clk 0:00:06.9]} 35. gxf3 {[%clk
0:00:02.8]} 35... Rf5 {[%clk 0:00:07.7]} 36. Kg2 {[%clk 0:00:02.8]} 36... Rb8
{[%clk 0:00:08.4]} 37. b4 {[%clk 0:00:03.2]} 37... Bc3 {[%clk 0:00:08.7]} 38.
Rec1 {[%clk 0:00:01.9]} 38... Rxb4 {[%clk 0:00:09.3]} 0-1

[Event "*** SCC Grand Prix: Titled Tuesday Blitz"]
[Site "Chess.com"]
[Date "2020.07.14"]
[Round "2"]
[White "Vse_po_kaify"]
[Black "ChronicUnhappiness"]
[Result "0-1"]
[WhiteElo "1986"]
[BlackElo "2353"]
[TimeControl "180+1"]
[EndTime "10:18:12 PDT"]
[Termination "ChronicUnhappiness won on time"]

1. e4 {[%clk 0:03:00.9]} 1... c5 {[%clk 0:02:59.4]} 2. Nf3 {[%clk 0:03:00.9]}
2... Nc6 {[%clk 0:02:59]} 3. d4 {[%clk 0:03:01.4]} 3... cxd4 {[%clk 0:02:58.9]}
4. Nxd4 {[%clk 0:03:02.2]} 4... Nf6 {[%clk 0:02:59.5]} 5. Nc3 {[%clk 0:03:01.7]}
5... e5 {[%clk 0:02:59.7]} 6. Ndb5 {[%clk 0:03:02.1]} 6... d6 {[%clk 0:03:00]}
7. Bg5 {[%clk 0:03:01.8]} 7... a6 {[%clk 0:02:59.6]} 8. Na3 {[%clk 0:03:02.3]}
8... b5 {[%clk 0:02:59.9]} 9. Bxf6 {[%clk 0:03:02.9]} 9... gxf6 {[%clk
0:03:00.1]} 10. Nd5 {[%clk 0:03:03.4]} 10... Bg7 {[%clk 0:03:00.5]} 11. g3
{[%clk 0:03:03.5]} 11... f5 {[%clk 0:02:57]} 12. Bg2 {[%clk 0:03:03.6]} 12...
O-O {[%clk 0:02:55.8]} 13. Qh5 {[%clk 0:02:58.4]} 13... fxe4 {[%clk 0:02:50.7]}
14. Bxe4 {[%clk 0:02:59.3]} 14... f5 {[%clk 0:02:49.7]} 15. Nf6+ {[%clk
0:02:39.1]} 15... Rxf6 {[%clk 0:02:35.6]} 16. Bxc6 {[%clk 0:02:38.3]} 16... Be6
{[%clk 0:02:35.8]} 17. Bxa8 {[%clk 0:02:34.1]} 17... Qxa8 {[%clk 0:02:35]} 18.
O-O-O {[%clk 0:02:34.5]} 18... d5 {[%clk 0:02:31.6]} 19. Rhe1 {[%clk 0:02:28.5]}
19... b4 {[%clk 0:02:15.5]} 20. Nb1 {[%clk 0:02:27.7]} 20... e4 {[%clk
0:02:15.4]} 21. Nd2 {[%clk 0:02:25.4]} 21... Bf7 {[%clk 0:02:13.9]} 22. Qe2
{[%clk 0:02:16.6]} 22... d4 {[%clk 0:01:59.1]} 23. Nb3 {[%clk 0:02:07.5]} 23...
Rd6 {[%clk 0:01:54.8]} 24. Kb1 {[%clk 0:01:55.2]} 24... Qd5 {[%clk 0:01:50.9]}
25. Qd2 {[%clk 0:01:46.6]} 25... a5 {[%clk 0:01:49.3]} 26. Nc1 {[%clk
0:01:21.9]} 26... Qc5 {[%clk 0:01:33.7]} 27. f3 {[%clk 0:01:02.7]} 27... e3
{[%clk 0:01:31.4]} 28. Rxe3 {[%clk 0:01:00.1]} 28... a4 {[%clk 0:01:09.7]} 29.
Re7 {[%clk 0:00:36.7]} 29... Bf6 {[%clk 0:01:03.4]} 30. Rb7 {[%clk 0:00:33.8]}
30... Rb6 {[%clk 0:00:29.9]} 31. Rxb6 {[%clk 0:00:20]} 31... Qxb6 {[%clk
0:00:30.8]} 32. Nd3 {[%clk 0:00:20.4]} 32... b3 {[%clk 0:00:29.3]} 33. cxb3
{[%clk 0:00:18.8]} 33... axb3 {[%clk 0:00:29.4]} 34. a3 {[%clk 0:00:19.3]} 34...
Qc6 {[%clk 0:00:23.1]} 35. Nb4 {[%clk 0:00:10.8]} 35... Qxf3 {[%clk 0:00:20.7]}
36. a4 {[%clk 0:00:09.8]} 36... Kg7 {[%clk 0:00:19.9]} 37. a5 {[%clk 0:00:10.1]}
37... Qe4+ {[%clk 0:00:15.4]} 38. Qd3 {[%clk 0:00:07.2]} 38... Qb7 {[%clk
0:00:13.9]} 39. Qa6 {[%clk 0:00:01.6]} 39... Qxb4 {[%clk 0:00:12.7]} 40. Qb6
{[%clk 0:00:02]} 40... Qc4 {[%clk 0:00:11.6]} 0-1